bitfinex-derivatives/quotes_ETHF0:USTF0_20250910
["timestamp","ask_amount","ask_price","bid_price","bid_amount"]
[1757479689476,0.8516,4313.0,4312.9,0.1983]
[1757479689675,0.8516,4313.0,4312.9,0.496]
[1757479693074,0.7306,4313.0,4312.9,0.7007]
[1757479694883,0.5358,4313.0,4312.9,0.7007]
[1757479695679,0.7306,4313.0,4312.9,0.7007]
[1757479711695,0.8489,4313.0,4312.9,0.496]
[1757479714595,0.8489,4313.0,4312.9,0.6966]
[1757479717395,0.7306,4313.0,4312.9,0.6966]
[1757479721295,0.5263,4313.0,4312.7,0.3223]
[1757479721502,0.7172,4312.7,4312.6,0.2114]
[1757479721698,0.7172,4312.7,4312.6,0.5337]
[1757479726898,0.7172,4312.7,4312.6,0.7343]
[1757479729002,0.7172,4312.7,4312.6,0.5337]
[1757479729591,0.528,4312.5,4312.4,0.21307677]
[1757479729796,0.8329,4312.5,4312.4,0.00347677]
[1757479734309,0.8329,4312.5,4312.4,0.53137677]
[1757479740713,0.8329,4312.5,4312.4,0.74017677]
[1757479741413,0.7072,4312.5,4312.4,0.74017677]
[1757479741611,0.232,4313.2,4312.8,0.7367]
[1757479741911,0.2044,4313.0,4312.9,0.2088]
[1757479742111,0.2044,4313.0,4312.9,0.7367]
[1757479742112,0.7072,4313.0,4312.9,0.7367]
[1757479743111,0.8329,4312.5,4312.4,0.00347677]
[1757479744711,0.8329,4312.5,4312.4,0.53137677]
[1757479747414,0.8329,4312.5,4312.4,0.00347677]
[1757479748713,0.8329,4312.5,4312.4,0.53137677]
[1757479749309,0.7072,4312.5,4312.4,0.74017677]
[1757479756717,0.8329,4312.5,4312.4,0.74017677]
[1757479758017,5.06479,4312.5,4312.4,0.00347677]
[1757479758215,0.7141,4311.8,4311.4,1.97133531]
[1757479758417,0.4138,4311.8,4311.7,0.2137]
[1757479758617,0.4138,4311.8,4311.7,0.5161]
[1757479758815,0.95705627,4311.8,4311.7,0.5161]
[1757479759014,1.25735627,4311.8,4311.7,0.5161]
[1757479759214,0.7141,4311.8,4311.7,0.5161]
[1757479760322,0.7141,4311.8,4311.7,0.2137]
[1757479761521,0.7141,4311.8,4311.5,0.3024]
[1757479762920,0.7141,4311.8,4311.0,0.1175]
[1757479763128,0.7141,4311.8,4311.2,0.3024]
[1757479763517,0.7141,4311.8,4311.3,0.23193999]
[1757479763822,0.4138,4311.8,4311.1,0.23193999]
[1757479764122,0.1187,4312.0,4311.2,0.7231]
[1757479764123,0.5149,4311.3,4311.2,0.7231]
[1757479764312,0.5149,4311.3,4311.2,0.95503999]
[1757479764723,0.5149,4311.3,4311.2,0.7231]
[1757479768625,0.7141,4311.3,4311.2,0.7231]
[1757479769225,0.7141,4311.3,4311.2,0.2137]
[1757479769426,1.9343976,4311.3,4310.6,0.3024]
[1757479770420,1.03158949,4311.1,4310.6,0.3024]
[1757479770627,0.7141,4310.7,4310.6,0.7231]
[1757479781235,0.2146,4311.5,4311.4,0.7231]
[1757479781436,0.5323,4311.9,4311.8,0.7231]
[1757479781737,0.9461,4311.9,4311.8,0.7231]
[1757479781931,0.9461,4311.9,4311.8,0.2137]
[1757479782132,0.9461,4311.9,4311.1,7.8]
[1757479782326,0.1187,4311.0,4310.9,0.3024]
[1757479782540,0.8328,4311.0,4310.9,0.5161]
[1757479784038,0.8328,4311.0,4310.9,0.7231]
[1757479784440,0.7141,4311.0,4310.9,0.7231]
[1757479784937,1.03158949,4311.4,4311.0,0.1182]
[1757479785138,0.4138,4311.4,4311.3,0.7231]
[1757479785344,1.44538949,4311.4,4311.3,0.7231]
[1757479785641,0.7141,4310.8,4310.7,0.7231]
[1757479787743,0.7141,4310.8,4310.4,0.2923]
[1757479787744,1.74568949,4310.8,4310.4,0.2923]
[1757479788043,0.1292,4311.0,4310.4,0.2923]
[1757479788044,1.75988949,4310.5,4310.4,0.7032]
[1757479796848,0.7283,4310.5,4310.4,0.7032]
[1757479802067,0.8575,4310.5,4310.4,0.7032]
[1757479802263,0.7283,4310.3,4310.2,1.66893531]
[1757479802459,1.75988949,4310.3,4310.2,0.5063]
[1757479811962,1.75988949,4310.3,4310.2,0.7032]
[1757479812265,0.00347677,4310.7,4310.4,0.4109]
[1757479812471,0.5132,4310.6,4310.5,0.8236]
[1757479812866,0.00347677,4310.7,4310.6,0.2923]
[1757479813067,0.00347677,4310.7,4310.6,1.96676949]
[1757479813266,0.00347677,4310.7,4310.6,5.96676949]
[1757479813668,0.00347677,4310.7,4310.6,13.76676949]
[1757479814064,0.00347677,4310.7,4310.6,13.53478949]
[1757479814268,0.00347677,4310.7,4310.6,13.76778949]
[1757479814570,0.00347677,4310.7,4310.6,13.99976949]
[1757479814770,0.00347677,4310.7,4310.6,13.76778949]
[1757479815169,0.00347677,4310.7,4310.6,15.43497425]
[1757479822278,0.00347677,4310.7,4310.6,13.76778949]
[1757479826374,0.00347677,4310.7,4310.6,9.76778949]
[1757479830585,0.00347677,4310.7,4310.6,8.7362]
[1757479839192,0.00347677,4310.7,4310.6,10.40338476]
[1757479841187,0.70547677,4310.7,4310.6,10.40418791]
[1757479841388,0.00347677,4310.7,4310.6,10.40418791]
[1757479842089,0.00347677,4310.7,4310.6,8.7362]
[1757479843584,0.3043,4311.9,4311.2,0.4071]
[1757479843791,0.3977,4311.9,4311.8,0.1964]
[1757479843992,0.3977,4311.9,4311.8,0.7226]
[1757479844293,0.702,4311.9,4311.8,0.7226]
[1757479847893,0.1949,4311.9,4311.8,0.7226]
[1757479848091,0.5061,4311.9,4311.8,0.7226]
[1757479848290,0.1949,4311.9,4311.8,0.7226]
[1757479848692,0.5061,4311.9,4311.8,0.7226]
[1757479849096,0.5061,4311.9,4311.8,0.9556]
[1757479851201,0.7111,4311.9,4311.8,0.9556]
[1757479856903,0.7111,4311.9,4311.8,0.233]
[1757479857403,0.7111,4311.9,4311.8,0.7467]
[1757479858706,0.7111,4311.9,4311.8,0.9544]
[1757479859706,0.7111,4311.9,4311.8,8.7544]
[1757479860899,0.1949,4311.9,4311.8,8.7544]
[1757479861705,0.5061,4311.9,4311.8,8.7544]
[1757479862005,0.7111,4311.9,4311.8,8.7544]
[1757479869908,0.3112,4312.4,4311.8,8.4435]
[1757479870111,0.9466,4312.4,4312.3,0.5137]
[1757479870505,0.9466,4312.4,4312.3,0.7214]
[1757479870706,0.7147,4312.4,4312.3,0.7214]
[1757479871913,0.4035,4312.9,4312.8,0.4105]
[1757479872107,1.25648839,4312.9,4312.8,0.7214]
[1757479873410,0.7147,4312.9,4312.8,0.7214]
[1757479873613,1.2523738,4312.9,4312.8,0.7214]
[1757479874110,0.7147,4312.9,4312.8,0.7214]
[1757479877508,0.7147,4312.9,4312.8,0.2028]
[1757479879920,0.7147,4312.9,4312.2,0.233]
[1757479880120,0.7147,4312.9,4312.3,0.3083]
[1757479882316,0.53655006,4312.8,4312.3,0.3083]
[1757479882618,0.53655006,4312.8,4312.2,0.233]
[1757479882619,0.7347,4312.8,4312.7,0.5106]
[1757479882818,1.27125193,4312.8,4312.7,0.5106]
[1757479883522,1.27125193,4312.8,4312.3,0.3083]
[1757479883819,0.7347,4312.8,4312.3,0.3083]
[1757479884622,0.7347,4312.8,4312.7,0.2023]
[1757479884921,1.27122723,4312.8,4312.7,0.5106]
[1757479892326,1.76545987,4312.8,4312.7,0.5106]
[1757479893628,0.422,4312.4,4312.3,0.3083]
[1757479893928,0.5205,4312.0,4311.9,0.40597677]
[1757479894426,0.5205,4312.0,4311.9,0.71427677]
[1757479896429,0.5205,4312.0,4311.9,2.38270481]
[1757479897327,0.3127,4312.3,4311.9,2.38270481]
[1757479897630,0.5205,4312.3,4312.2,0.7108]
[1757479898829,0.7347,4312.3,4312.2,0.7108]
[1757479901126,0.7347,4312.3,4312.2,2.37922804]
[1757479901623,0.2078,4312.6,4312.5,0.4025]
[1757479901930,0.7347,4312.6,4312.5,0.7108]
[1757479905432,0.2078,4312.6,4312.5,0.8377]
[1757479906135,0.5205,4312.6,4312.5,0.8377]
[1757479906437,0.7347,4312.6,4312.5,0.8377]
[1757479909035,0.5205,4312.6,4312.5,0.8377]
[1757479909240,1.15385987,4313.0,4312.5,0.8377]
[1757479909241,0.5034,4312.9,4312.8,0.4111]
[1757479909440,1.04083683,4312.9,4312.8,0.7336]
[1757479909737,0.5401,4313.3,4313.0,0.1291]
[1757479909941,0.932,4313.3,4313.2,0.7336]
[1757479910143,1.47035994,4313.3,4313.2,0.7336]
[1757479912643,0.3071,4312.9,4312.6,0.3225]
[1757479912840,0.1271,4313.0,4312.6,0.7336]
[1757479912841,0.699,4312.7,4312.6,0.7336]
[1757479919253,0.1963,4312.7,4312.6,0.7336]
[1757479919445,1.26375987,4313.3,4312.6,0.4111]
[1757479919752,0.699,4313.2,4313.1,0.5191]
[1757479928659,0.699,4313.2,4313.1,0.7336]
[1757479931260,1.23265287,4313.2,4313.1,0.7336]
[1757479931460,0.699,4313.2,4313.1,0.7336]
[1757479932261,1.23268049,4313.2,4313.1,0.7336]
[1757479940071,1.23152883,4313.2,4313.1,0.7336]
[1757479952477,1.23152883,4313.2,4313.1,0.5191]
[1757479954085,0.53252883,4313.2,4313.1,0.7131]
[1757479954377,0.2938,4313.5,4313.4,0.7065]
[1757479954378,0.4999,4313.5,4313.4,0.7065]
[1757479954775,1.03230139,4313.5,4313.4,8.5065]
[1757479955074,1.23280139,4313.5,4313.4,8.5065]
[1757479955675,0.7004,4313.5,4313.4,8.5065]
[1757479956771,0.4999,4313.5,4313.4,8.5065]
[1757479956975,1.21988416,4314.2,4313.6,0.7065]
[1757479957277,1.21988416,4314.2,4313.5,0.1165]
[1757479957278,0.2938,4313.8,4313.7,0.3139]
[1757479957482,1.03207282,4313.8,4313.7,0.7065]
[1757479958685,0.4999,4313.8,4313.7,0.7065]
[1757479959485,0.2061,4313.8,4313.7,0.7065]
[1757479959684,0.4999,4313.8,4313.7,0.7065]
[1757479961182,0.2061,4313.8,4313.7,0.7065]
[1757479961384,0.232,4313.9,4313.7,0.3926]
[1757479961583,0.4999,4314.1,4314.0,0.823]
[1757479961775,0.2061,4314.1,4314.0,0.823]
[1757479961980,0.4999,4314.1,4314.0,0.823]
[1757479962974,0.2061,4314.1,4314.0,0.823]
[1757479963678,0.4999,4314.1,4314.0,0.823]
[1757479966890,0.7004,4314.1,4314.0,0.7065]
[1757479977592,0.7004,4314.1,4313.5,0.3485]
[1757479977593,0.4102,4313.6,4313.5,0.5619]
[1757479977800,0.7102,4313.6,4313.5,0.6539]
[1757479978298,0.7102,4313.6,4313.5,0.9645]
[1757479982410,0.1295,4314.0,4313.5,1.0861]
[1757479982609,0.3,4313.9,4313.8,0.4219]
[1757479982810,0.5109,4313.9,4313.8,0.7325]
[1757479983015,0.7102,4313.9,4313.8,0.7325]
[1757479993720,0.7102,4313.9,4313.8,8.5325]
[1757479996823,0.2109,4313.9,4313.8,8.5325]
[1757479997817,1.21988416,4314.3,4313.8,8.2219]
[1757479998019,0.5369,4314.4,4314.3,0.6943]
[1757479998216,1.27609386,4314.4,4314.3,0.6943]
[1757480003827,1.06859386,4314.4,4314.3,0.6943]
[1757480004229,1.27609386,4314.4,4314.3,0.6943]
[1757480007933,0.95339386,4314.4,4313.9,0.2938]
[1757480008136,0.7444,4313.9,4313.8,8.2005]
[1757480008736,0.7444,4313.9,4313.8,8.4943]
[1757480010833,0.5369,4313.9,4313.8,8.4943]
[1757480012733,0.7444,4313.9,4313.8,8.4943]
[1757480015438,0.5369,4313.9,4313.8,8.4943]
[1757480016331,0.2142,4313.9,4313.8,8.4943]
[1757480017133,0.5369,4313.9,4313.8,8.4943]
[1757480017333,0.5369,4314.4,4314.3,0.4005]
[1757480017540,1.06926545,4314.4,4314.3,0.6943]
[1757480018932,0.74656545,4314.4,4314.3,0.6943]
[1757480019238,1.06926545,4314.4,4314.3,0.6943]
[1757480021539,0.232,4314.8,4314.3,0.6943]
[1757480021540,0.3227,4314.7,4314.3,0.6943]
[1757480021738,0.1271,4315.0,4314.6,0.6943]
[1757480021936,0.85503682,4314.9,4314.8,0.6943]
[1757480022939,1.06923682,4314.9,4314.8,0.6943]
[1757480026044,1.27673682,4314.9,4314.8,0.6943]
[1757480030741,1.03009965,4315.1,4314.5,0.1225]
[1757480030742,1.23309965,4315.1,4315.0,0.1238]
[1757480031048,2.27920224,4315.1,4315.0,0.8198]
[1757480031346,2.27920224,4315.1,4315.0,0.696]
[1757480032342,1.74869965,4315.1,4315.0,0.696]
[1757480035248,1.74869965,4315.1,4315.0,0.5021]
[1757480039338,0.125,4315.0,4314.8,0.3076]
[1757480039539,0.8436,4314.5,4314.4,0.00347677]
[1757480039852,0.8436,4314.5,4314.4,0.50557677]
[1757480040141,0.8436,4314.5,4314.4,0.00347677]
[1757480040940,1.87369965,4314.5,4314.4,0.00347677]
[1757480053860,1.87369965,4314.5,4314.4,0.31107677]
[1757480054058,1.87369965,4314.5,4314.4,0.50557677]
[1757480057762,1.87369965,4314.5,4314.4,0.19797677]
[1757480058152,1.87369965,4314.5,4314.4,0.00347677]
[1757480062362,2.40400611,4314.5,4314.4,0.00347677]
[1757480063560,1.37390646,4314.5,4314.4,0.00347677]
[1757480063753,2.40400611,4314.5,4314.4,0.00347677]
[1757480074768,2.40400611,4314.5,4314.4,0.20427677]
[1757480075464,2.40400611,4314.5,4314.4,0.00347677]
[1757480076464,1.37390646,4314.5,4314.4,0.00347677]
[1757480077372,1.60590646,4314.5,4314.4,0.70017677]
[1757480078069,1.37390646,4314.5,4314.4,0.50457677]
[1757480078266,1.60590646,4314.5,4314.4,0.50457677]
[1757480082771,1.37390646,4314.5,4314.4,0.50457677]
[1757480082972,1.60590646,4314.5,4314.4,0.50457677]
[1757480084475,1.60590646,4314.5,4314.4,0.20427677]
[1757480084773,1.60590646,4314.5,4314.4,0.00347677]
[1757480086173,0.414,4313.9,4313.7,1.66842804]
[1757480086377,0.7108,4313.8,4313.7,1.66842804]
[1757480086570,0.7108,4313.8,4313.7,2.10103804]
[1757480086771,0.7108,4313.8,4313.7,2.16952804]
[1757480088573,1.63371065,4313.8,4313.5,1.66842804]
[1757480088875,0.8357,4313.5,4313.4,0.5018]
[1757480101883,0.3167,4313.1,4312.8,0.3031]
[1757480102088,1.33641065,4313.5,4312.8,0.5018]
[1757480102089,0.719,4312.9,4312.8,0.5018]
[1757480103787,0.719,4312.9,4312.8,0.7054]
[1757480108385,0.5127,4312.9,4312.8,0.7054]
[1757480108588,0.837,4313.9,4313.8,0.1987]
[1757480108787,0.719,4313.9,4313.8,0.5018]
[1757480109994,0.719,4313.9,4313.8,0.1987]
[1757480110289,0.719,4313.9,4313.8,0.7054]
[1757480117189,0.5127,4313.9,4313.8,0.7054]
[1757480117787,0.7112,4313.9,4313.8,0.7054]
[1757480122895,0.7112,4313.9,4313.8,0.5018]
[1757480124290,0.7112,4313.9,4313.8,0.1987]
[1757480125496,0.7112,4313.9,4313.8,0.5141]
[1757480130598,0.7112,4313.9,4313.8,0.7144]
[1757480134108,0.3945,4313.9,4313.2,0.3154]
[1757480134403,0.7258,4313.3,4313.2,0.7194]
[1757480134701,0.7258,4313.3,4313.2,0.95122]
[1757480134902,0.7258,4313.3,4313.2,0.7194]
[1757480135601,0.7258,4313.3,4313.2,0.95124]
[1757480135903,0.5273,4313.3,4313.2,0.7194]
[1757480136104,0.5273,4313.3,4313.2,2.38782804]
[1757480136299,0.5273,4313.3,4313.2,0.7194]
[1757480136499,0.5273,4313.3,4313.2,2.38782804]
[1757480138105,0.5273,4313.3,4313.2,0.7194]
[1757480138301,0.2134,4313.3,4313.2,0.7194]
[1757480139408,0.3139,4313.5,4313.2,0.7194]
[1757480139606,0.3139,4313.5,4313.4,0.404]
[1757480139806,0.3139,4313.5,4313.4,0.7194]
[1757480140302,0.3139,4313.8,4313.5,0.1183]
[1757480140511,0.1189,4314.0,4313.9,0.7194]
[1757480140512,0.7258,4314.0,4313.9,0.7194]
[1757480140713,1.25709958,4314.0,4313.9,0.7194]
[1757480144214,2.40630112,4314.0,4313.9,0.5191]
[1757480144414,2.40630112,4314.0,4313.9,0.2037]
[1757480145211,2.40630112,4314.0,4313.7,0.3154]
[1757480145514,0.7258,4313.8,4313.7,0.3154]
[1757480146112,0.4119,4313.8,4313.3,1.66971525]
[1757480146415,0.7258,4313.4,4313.3,2.07371525]
[1757480146814,0.7258,4313.4,4313.3,2.38911525]
[1757480150510,0.5273,4313.4,4313.3,2.38911525]
[1757480152414,0.5273,4313.4,4313.3,0.7194]
[1757480160423,0.2134,4313.4,4313.3,0.7194]
[1757480160621,0.3119,4314.2,4313.6,0.4252]
[1757480160925,0.53080282,4314.1,4314.0,0.862]
[1757480161313,0.73910282,4314.1,4314.0,0.862]
[1757480161521,0.53080282,4314.1,4314.0,0.862]
[1757480161722,1.05100282,4314.1,4314.0,0.862]
[1757480162311,0.5202,4314.1,4314.0,0.862]
[1757480164328,1.03030154,4314.8,4314.0,0.862]
[1757480164329,0.00347677,4314.9,4314.0,4.862]
[1757480164620,0.31537677,4314.9,4314.8,0.7433]
[1757480164817,0.52367677,4314.9,4314.8,0.7433]
[1757480165035,0.72147677,4314.9,4314.8,0.7433]
[1757480169218,0.00347677,4314.9,4314.8,0.7433]
[1757480173023,0.7522,4315.6,4315.5,0.4252]
[1757480173329,0.7522,4315.6,4315.5,0.862]
[1757480173526,0.1279,4316.5,4315.5,0.862]
[1757480173527,0.3119,4315.8,4315.5,0.862]
[1757480173731,0.718,4316.2,4316.1,0.4252]
[1757480173927,0.718,4316.2,4316.1,0.7433]
[1757480176326,0.232,4316.3,4316.1,0.7433]
[1757480176527,0.232,4316.3,4316.2,0.7433]
[1757480176723,1.26230154,4316.9,4316.3,0.3181]
[1757480176924,0.7187,4316.8,4316.7,0.2132]
[1757480177125,0.7187,4316.8,4316.7,0.536]
[1757480177628,0.7187,4316.8,4316.7,0.7425]
[1757480195359,0.7187,4316.8,4316.1,0.5245]
[1757480195360,0.7046,4316.2,4316.1,0.5245]
[1757480195554,1.73490154,4316.2,4316.1,0.731]
[1757480197750,1.73490154,4316.2,4315.6,0.3228]
[1757480197955,0.7046,4315.7,4315.6,0.5245]
[1757480204953,0.2953,4315.6,4315.1,9.79251525]
[1757480205155,0.7046,4315.2,4315.1,8.3245]
[1757480205462,0.7046,4315.2,4315.1,0.731]
[1757480215169,0.7046,4315.2,4314.8,1.66971525]
[1757480215170,0.4087,4314.9,4314.8,0.3218]
[1757480215369,0.7025,4314.9,4314.8,0.5207]
[1757480216075,0.7025,4314.9,4314.8,0.7308]
[1757480224685,0.7025,4314.9,4314.5,1.78841525]
[1757480224686,0.214,4315.8,4315.1,0.3218]
[1757480224887,0.9165,4315.8,4315.7,0.1989]
[1757480225384,0.9165,4315.8,4315.7,0.5207]
[1757480225385,0.7025,4315.8,4315.7,0.5207]
[1757480225581,0.7025,4315.8,4315.7,0.7308]
[1757480229680,0.7025,4315.8,4315.1,7.8]
[1757480229883,0.7025,4315.3,4315.2,0.5207]
[1757480233184,0.7025,4315.3,4315.2,0.7308]
[1757480250295,0.1189,4315.0,4314.9,1.66971525]
[1757480250599,0.8061,4315.0,4314.9,0.5244]
[1757480250792,0.8061,4315.0,4314.9,0.7228]
[1757480250997,0.6872,4315.0,4314.9,0.7228]
[1757480252395,0.6872,4315.0,4314.9,2.39251525]
[1757480253390,0.4902,4315.0,4314.9,2.39251525]
[1757480253595,0.1945,4315.3,4315.2,0.401]
[1757480253896,0.4902,4315.3,4315.2,0.7228]
[1757480258804,0.6872,4315.3,4315.2,0.7228]
[1757480260493,0.6872,4315.3,4315.2,0.2026]
[1757480262706,0.6872,4315.3,4314.9,1.66971525]
[1757480263010,0.8061,4315.0,4314.9,0.5244]
[1757480263210,0.8061,4315.0,4314.9,0.7228]
[1757480263509,0.6872,4315.0,4314.9,0.7228]
[1757480274817,0.1172,4314.5,4314.4,0.00347677]
[1757480275122,0.8206,4314.5,4314.4,0.00347677]
[1757480275315,0.8206,4314.5,4314.4,0.31197677]
[1757480275515,0.8206,4314.5,4314.4,0.52347677]
[1757480279518,0.8206,4314.5,4314.4,0.00347677]
[1757480280724,0.8206,4314.5,4314.4,0.52347677]
[1757480281423,0.8206,4314.5,4314.4,0.00347677]
[1757480283020,0.8206,4314.5,4314.4,0.52347677]
[1757480287129,0.8206,4314.5,4314.4,0.00347677]
[1757480287520,0.8206,4314.5,4314.4,0.52347677]
[1757480289429,0.7034,4314.5,4314.4,0.72017677]
[1757480292230,0.8206,4314.5,4314.4,0.72017677]
[1757480294427,0.7034,4314.5,4314.4,0.72017677]
[1757480298637,0.3067,4314.7,4314.4,0.72017677]
[1757480298839,0.3067,4314.7,4314.6,0.7361]
[1757480299439,0.3067,4314.8,4314.6,0.415]
[1757480299633,0.3067,4314.8,4314.7,0.7361]
[1757480301134,0.22,4314.9,4314.7,0.7361]
[1757480301339,0.5267,4314.9,4314.8,0.7361]
[1757480301541,0.7287,4314.9,4314.8,0.7361]
[1757480307731,0.422,4314.9,4314.8,0.7361]
[1757480308037,1.53819996,4315.2,4315.1,0.415]
[1757480308236,1.75259996,4315.2,4315.1,0.7361]
[1757480311137,0.7231,4315.2,4315.1,0.7361]
[1757480314942,0.7231,4315.2,4315.1,0.2046]
[1757480315245,0.7231,4315.2,4315.1,0.5257]
[1757480318643,0.7231,4315.2,4315.1,0.7361]
[1757480326342,1.25075213,4315.2,4315.1,0.7361]
[1757480327350,1.25073936,4315.2,4315.1,0.7361]
[1757480339650,1.25073936,4315.2,4314.8,0.2928]
[1757480339855,0.4017,4314.8,4314.7,0.5004]
[1757480340059,0.7208,4314.8,4314.7,0.93844999]
[1757480340859,0.7208,4314.8,4314.7,0.7067]
[1757480342359,0.1952,4314.8,4314.7,0.7067]
[1757480344858,0.3191,4315.0,4314.7,0.7067]
[1757480345064,0.7208,4315.4,4315.3,0.2076]
[1757480345263,1.24822744,4315.4,4315.3,0.5004]
[1757480347563,1.24822744,4315.4,4315.3,0.2076]
[1757480347756,1.24822744,4315.4,4314.6,0.2928]
[1757480348060,0.92912744,4315.3,4315.2,0.5004]
[1757480348462,1.24822744,4315.3,4315.2,0.5004]
[1757480351060,1.24822744,4315.3,4315.2,0.7067]
[1757480353267,0.7208,4315.3,4315.2,0.7067]
[1757480361264,0.5143,4315.3,4315.2,0.7067]
[1757480361464,0.1952,4315.3,4315.2,0.7067]
[1757480361866,0.3031,4315.6,4315.2,0.7067]
[1757480362063,0.3031,4315.9,4315.3,0.3004]
[1757480362258,1.2385218,4315.8,4315.7,0.5072]
[1757480362862,1.2385218,4315.8,4315.7,0.2068]
[1757480363061,1.2385218,4315.8,4315.5,0.3004]
[1757480363260,0.7128,4315.6,4315.5,0.3004]
[1757480363464,0.3031,4315.4,4315.3,0.2068]
[1757480363672,0.7128,4315.4,4315.3,0.2068]
[1757480363867,0.4097,4315.4,4315.1,0.3004]
[1757480364067,0.3031,4315.3,4315.1,0.3004]
[1757480364267,0.7128,4315.1,4315.0,8.6452]
[1757480364467,0.7128,4315.1,4315.0,0.2068]
[1757480364774,0.7128,4315.1,4315.0,0.5072]
[1757480365773,0.432,4315.0,4314.8,1.97011525]
[1757480365970,0.8417,4315.0,4314.9,0.2068]
[1757480366173,0.8417,4315.0,4314.9,0.5072]
[1757480366774,0.3031,4314.9,4314.8,1.66971525]
[1757480367078,0.7128,4314.7,4314.6,0.5072]
[1757480368573,0.1289,4314.5,4314.4,7.80347677]
[1757480368773,0.8417,4314.5,4314.4,0.00347677]
[1757480369381,0.8417,4314.5,4314.4,0.30387677]
[1757480370171,0.8417,4314.5,4314.4,0.00347677]
[1757480372478,0.8417,4314.5,4314.4,0.51067677]
[1757480373079,0.8417,4314.5,4314.4,0.00347677]
[1757480373480,0.8417,4314.5,4314.4,0.51067677]
[1757480375276,0.8417,4314.5,4314.4,0.21027677]
[1757480376881,0.8417,4314.5,4314.4,0.51067677]
[1757480379291,0.8417,4314.5,4314.4,0.00347677]
[1757480390103,0.7128,4314.5,4314.4,0.72777677]
[1757480390808,0.8365,4314.5,4314.4,0.00347677]
[1757480404616,0.3226,4314.4,4314.2,1.66971525]
[1757480404817,0.7307,4313.9,4313.8,1.66971525]
[1757480405325,0.7307,4313.9,4313.7,1.66971525]
[1757480405620,0.7307,4313.9,4313.3,2.3103448]
[1757480405621,0.8544,4313.5,4313.4,1.66971525]
[1757480406625,0.3226,4313.4,4313.3,2.18771525]
[1757480406826,0.7307,4313.4,4313.3,2.18771525]
[1757480407416,0.7307,4313.4,4313.3,2.39401525]
[1757480410117,0.7307,4313.4,4313.3,0.7243]
[1757480413018,1.02990879,4313.8,4313.3,0.7243]
[1757480413319,0.5219,4313.7,4313.6,0.7243]
[1757480413914,0.7307,4313.7,4313.2,1.66971525]
[1757480414119,0.4081,4313.3,4313.2,2.07841525]
[1757480414427,0.7307,4313.3,4313.2,2.39401525]
[1757480417628,0.1993,4313.3,4313.2,2.39401525]
[1757480417932,0.7186,4313.7,4313.6,0.7297]
[1757480425329,0.4117,4313.7,4313.3,0.3182]
[1757480425535,0.7186,4313.4,4313.3,0.3182]
[1757480425735,0.7186,4313.4,4313.3,0.5313]
[1757480426438,0.7186,4313.4,4313.3,2.20101525]
[1757480427630,0.7186,4313.4,4313.3,2.39941525]
[1757480427827,0.7186,4313.4,4313.3,0.5313]
[1757480431039,0.7186,4313.4,4313.3,0.7297]
[1757480432440,0.7186,4313.4,4313.3,2.39941525]
[1757480432742,0.7186,4313.4,4313.3,0.7297]
[1757480434340,0.7186,4313.4,4313.3,2.39941525]
[1757480440244,0.7186,4313.4,4313.3,0.2131]
[1757480440542,0.7186,4313.2,4313.1,0.3182]
[1757480440739,1.74850879,4313.2,4313.1,0.3182]
[1757480441141,1.74850879,4313.2,4312.9,1.66971525]
[1757480441350,0.7186,4313.1,4313.0,0.5313]
[1757480441542,1.74850879,4313.1,4313.0,0.5313]
[1757480441850,0.7186,4312.8,4312.7,0.7297]
[1757480456550,0.3041,4313.3,4312.8,0.2952]
[1757480456750,0.64965,4313.3,4313.2,0.5066]
[1757480457057,0.4178,4313.3,4313.2,0.7045]
[1757480457254,0.95374,4313.3,4313.2,0.7045]
[1757480457756,0.7219,4313.3,4313.2,0.7045]
[1757480459161,0.7219,4313.3,4313.2,0.2114]
[1757480461158,0.7219,4313.3,4313.2,0.5066]
[1757480461769,0.7219,4313.3,4313.2,0.7045]
[1757480463148,0.7219,4313.3,4313.2,0.5066]
[1757480463352,0.7219,4313.3,4313.2,0.2114]
[1757480466061,0.7219,4313.3,4313.0,0.2952]
[1757480466361,0.2031,4312.8,4312.7,0.7045]
[1757480466560,0.5072,4312.8,4312.7,0.7045]
[1757480468364,0.5072,4312.8,4312.7,2.37421525]
[1757480468954,0.3041,4313.1,4312.7,2.37421525]
[1757480469263,0.7219,4313.3,4313.2,0.5066]
[1757480469664,0.7219,4313.3,4313.2,0.7045]
[1757480472160,0.7219,4313.3,4313.2,0.2114]
[1757480472660,1.24730678,4313.3,4313.2,0.2114]
[1757480473166,0.232,4313.4,4313.2,0.4093]
[1757480473366,0.4351,4313.4,4313.3,0.7045]
[1757480473658,1.26460324,4313.4,4313.3,0.7045]
[1757480478770,1.47190324,4313.4,4313.3,0.7045]
[1757480490873,0.308,4313.3,4312.8,1.66971525]
[1757480491079,0.7281,4312.9,4312.8,0.5278]
[1757480491669,0.7281,4312.9,4312.8,0.7331]
[1757480493075,0.7281,4312.9,4312.8,2.40281525]
[1757480494782,0.4201,4312.9,4312.7,1.66971525]
[1757480495084,0.7281,4312.8,4312.7,1.66971525]
[1757480495478,0.7281,4312.8,4312.3,2.4009448]
[1757480495479,0.7281,4312.7,4312.4,1.66971525]
[1757480495678,0.8539,4312.5,4312.4,0.5278]
[1757480496179,0.8539,4312.5,4312.3,1.66971525]
[1757480496379,0.308,4312.4,4312.3,2.19751525]
[1757480496587,0.7281,4312.4,4312.3,2.19751525]
[1757480497276,1.64063653,4312.4,4312.2,1.66971525]
[1757480497471,0.7281,4312.3,4312.1,1.66971525]
[1757480497682,0.7281,4312.2,4312.1,2.19751525]
[1757480499177,0.4201,4312.2,4312.0,1.66971525]
[1757480499485,0.4201,4311.9,4311.8,0.7331]
[1757480499987,0.7281,4311.9,4311.8,0.7331]